Cogmind - Beta 12 @@@ ROGUE MODE // 2024.02.18 @ 17:45:09 Player: Dosh Result: Destroyed by G-47 Trooper with Particle Gun Performance ------------- Evolutions (1) 500 Regions Visited (6) 1200 Robots Destroyed (118) 590 Value Destroyed (2537) 2537 Prototype IDs (28) 560 Alien Tech Used (0) 0 Bonus (632) 632 TOTAL SCORE: 6019 Bonus ------- High Alert Combat Kills 307 Follower Combat Kills 25 Aligned with FarCom 300 Cogmind --------- Core Integrity 0/400 Matter 30/300 Energy 280/280 System Corruption 0% Temperature Cool (75) Movement Treading (320) Ox2 Location -8/Mines Parts ------- > --- POWER (1) -------- Heavy Ion Engine > --- PROPULSION (2) --- Improved Treads > --- UTILITY (4) ------ Large Storage Unit Seismic Detector Hardened Medium Armor Plating Hardened Medium Armor Plating > --- WEAPON (2) ------- Improved Assault Rifle Grenade Launcher > --- INVENTORY (15) --- Cooled Ion Engine Improved Flight Unit Transport Network Coupler Hardened Medium Armor Plating Hardened Medium Armor Plating System Shield Trap Extractor (0/4) Firepult Improved Assault Rifle Peak State ------------ > --- POWER ------------ Cooled Ion Engine > --- PROPULSION ------- Light Treads Improved Treads > --- UTILITY ---------- Large Storage Unit Seismic Detector Hardened Medium Armor Plating Hardened Medium Armor Plating > --- WEAPON ----------- Heavy EM Pulse Gun Improved Assault Rifle > --- INVENTORY -------- Heavy Ion Engine Improved Treads Improved Flight Unit Machine Analyzer Transport Network Coupler Hardened Medium Armor Plating Hardened Medium Armor Plating Hacking Suite Hacking Suite System Shield Trap Extractor Firepult Improved Assault Rifle Grenade Launcher [Rating: 24] Favorites ----------- Power Cooled Ion Engine Engine Cooled Ion Engine Propulsion Improved Treads Treads Improved Treads Flight Unit Improved Flight Unit Utility Seismic Detector Device Seismic Detector Storage Large Storage Unit Protection Hardened Medium Armor Plating Weapon Heavy EM Pulse Gun Energy Gun Heavy EM Pulse Gun Ballistic Gun Improved Assault Rifle Launcher Grenade Launcher Build | -11 -10 -10 -9 -9 -9 -8 ------- Run | Jun Mat Min Mat Min Exi Min Slots Evolved 2 | . . . 2 . . . Power . | . . . . . . . Propulsion . | . . . . . . . Utility 2 | . . . 2 . . . Weapon . | . . . . . . . Parts Attached 67 | 7 11 3 31 1 12 2 Power 6 | 1 1 . 3 . 1 . Engine 6 | 1 1 . 3 . 1 . Core . | . . . . . . . Reactor . | . . . . . . . Propulsion 18 | 2 3 1 11 . 1 . Treads 17 | 2 3 1 10 . 1 . Leg . | . . . . . . . Wheel . | . . . . . . . Hover . | . . . . . . . Flight 1 | . . . 1 . . . Utility 21 | 2 2 . 10 . 5 2 Device 3 | 1 1 . . . . 1 Storage 4 | 1 1 . 1 . 1 . Processor . | . . . . . . . Hackware . | . . . . . . . Protection 14 | . . . 9 . 4 1 Artifact . | . . . . . . . Weapon 22 | 2 5 2 7 1 5 . Energy Gun 7 | 1 1 . 4 . 1 . Energy Cannon . | . . . . . . . Ballistic Gun 12 | 1 4 1 3 . 3 . Ballistic Cannon . | . . . . . . . Launcher 3 | . . 1 . 1 1 . Special Weapon . | . . . . . . . Impact Weapon . | . . . . . . . Slashing Weapon . | . . . . . . . Piercing Weapon . | . . . . . . . Special Melee Weapon . | . . . . . . . Unidentified Prototypes 5 | . . . 5 . . . Parts Lost 12 | . 2 2 5 . 2 1 Power . | . . . . . . . Propulsion 5 | . . 1 2 . 1 1 Utility 1 | . . . 1 . . . Weapon 6 | . 2 1 2 . 1 . Highest Loss Streak 2 | . 2 2 2 . 2 1 To Critical Strikes . | . . . . . . . Average Slot Usage (%) 95 | . 98 100 92 100 89 99 Engine 11 | . 14 14 11 11 9 11 Treads 23 | . 28 28 21 22 21 21 Device 11 | . 13 14 11 11 8 10 Storage 11 | . 14 14 11 11 9 11 Protection 13 | . . . 15 22 19 22 Energy Gun 7 | . 4 . 7 11 9 . Ballistic Gun 12 | . 22 17 13 . 5 11 Launcher 3 | . . 10 . 11 4 11 Naked Turns . | . . . . . . . Heaviest Build 58 | 13 21 23 51 51 58 58 Greatest Support 46 | 40 43 46 46 43 46 46 Greatest Overweight (x) 2 | . . . 1 1 2 2 Average Overweight (x) . | . . . . 1 . 1 Largest Inventory Capacity 15 | 8 10 10 15 15 15 15 Average Capacity 12 | 6 8 10 13 15 13 15 Most Carried 15 | 2 10 10 15 15 15 10 Average Carried 11 | . 8 9 12 15 12 10 Final Capacity 15 | 8 10 10 15 15 15 15 Final Carried 15 | 2 10 8 15 15 10 10 Class Distribution -------------------- 95% | Mutant 4% | Scavenger-Mutant Dominant Class ---------------- Mutant | -10/Materials Mutant | -10/Mines Mutant | -9/Materials Mutant | -9/Mines Mutant | -9/Exiles Mutant | -8/Mines Resources | -11 -10 -10 -9 -9 -9 -8 ----------- Run | Jun Mat Min Mat Min Exi Min Matter Collected 1695 | 271 311 65 984 20 26 18 Remotely . | . . . . . . . Salvage Created 3516 | 32 712 101 2491 16 32 132 Parts 251 | 7 59 11 153 4 . 17 Haulers Intercepted 7 | . 2 . 5 . . . Recyclers Shooed 11 | . 3 . 7 1 . . Parts Field Recycled . | . . . . . . . Retrieved Matter . | . . . . . . . Parts Self-Destructed . | . . . . . . . Prevented . | . . . . . . . Kills | -11 -10 -10 -9 -9 -9 -8 ------- Run | Jun Mat Min Mat Min Exi Min Combat Hostiles Destroyed 88 | . 18 7 43 2 7 11 Melee 1 | . 1 . . . . . Guns 67 | . 17 1 41 1 2 5 AOE 20 | . . 6 2 1 5 6 Classes Destroyed 14 | 1 6 . 6 . 1 . Worker 9 | . 4 1 4 . . . Builder 1 | . . . 1 . . . Tunneler 3 | 2 . 1 . . . . Hauler 7 | . 2 . 5 . . . Recycler 5 | . . . 5 . . . Mechanic 1 | . . . 1 . . . Operator 4 | . 1 . 3 . . . Watcher 7 | . 2 . 5 . . . Swarmer 34 | . 6 6 12 2 . 8 Grunt 34 | . 12 1 18 . . 3 Brawler 2 | . . . 2 . . . Duelist 1 | . . . 1 . . . Sentry 10 | . . . 10 . . . Assembled 7 | . . . . . 7 . Best Kill Streak 9 | 2 3 3 9 2 7 8 Combat Bots Only 8 | . 3 3 8 2 7 8 Max Kills in Single Turn 3 | 1 2 2 3 1 3 2 Gunslinging 1 | . . . 1 . . . Exploded 3 | . . 2 2 1 3 1 Melee 1 | . 1 . . . . . Uniques/NPCs Destroyed . | . . . . . . . Combat | -11 -10 -10 -9 -9 -9 -8 -------- Run | Jun Mat Min Mat Min Exi Min Damage Taken 4092 | . 738 318 1767 23 885 361 Core 627 | . 139 84 248 . 71 85 Absorbed by Shields . | . . . . . . . Regen/Repaired (Parts) 118 | . 19 . 99 . . . Core Remaining (%) 55 | 100 . 10 . . . . Volleys Fired 286 | 2 83 16 160 2 10 13 Largest 2 | 2 2 2 2 2 1 2 Hottest 101 | 60 85 40 101 75 45 53 Shots Fired 529 | 4 152 22 316 3 10 22 Gun 502 | 4 152 12 316 2 7 9 Cannon . | . . . . . . . Launcher 27 | . . 10 . 1 3 13 Special . | . . . . . . . Kinetic 364 | 2 109 12 227 . 5 9 Thermal 27 | . 6 . 21 . . . Explosive 27 | . . 10 . 1 3 13 Electromagnetic 111 | 2 37 . 68 2 2 . Robot Hit Streak 21 | 1 9 6 21 9 10 9 Robot Miss Streak 6 | 2 5 2 6 . 1 2 Penetration Max . | . . . . . . . Secondary Targets 8 | . 1 . 7 . . . Max Gunslinging Chain 1 | . 1 . 1 . . . Shots Hit Robots 356 | 1 96 13 225 3 6 12 Core Hits 185 | 2 40 15 93 2 14 19 Critical Kills 1 | . . . 1 . . . Critical Parts Destroyed . | . . . . . . . Critical Strikes 1 | . . . 1 . . . Destroy 1 | . . . 1 . . . Melee Attacks . | . . . . . . . Impact . | . . . . . . . Slashing . | . . . . . . . Piercing . | . . . . . . . Sneak Attacks . | . . . . . . . Combat Hostiles . | . . . . . . . Follow-up Attacks . | . . . . . . . Damage Inflicted 7129 | 31 1486 463 3836 158 349 806 Guns 4946 | 28 1209 82 3431 28 64 104 Cannons . | . . . . . . . Explosions 2079 | . 247 381 367 111 285 688 Melee . | . . . . . . . Ramming 104 | 3 30 . 38 19 . 14 Kinetic 3457 | . 831 82 2376 . 64 104 Thermal 983 | . 297 . 618 68 . . Explosive 1397 | . . 381 . 43 285 688 Electromagnetic 1188 | 28 328 . 804 28 . . Impact . | . . . . . . . Slashing . | . . . . . . . Piercing . | . . . . . . . Highest Corruption . | . . . . . . . Average Corruption . | . . . . . . . Corruption Purged . | . . . . . . . Corruption Blocked . | . . . . . . . Overload Shots . | . . . . . . . Overflow Damage 181 | . 65 . 104 6 . 6 Projectiles . | . . . . . . . Explosions 181 | . 65 . 104 6 . 6 Melee . | . . . . . . . Knockbacks 1 | . . . 1 . . . Impact 1 | . . . 1 . . . Kinetic . | . . . . . . . Secondary . | . . . . . . . Self-Inflicted Damage 316 | . 54 85 101 . . 76 Shots 9 | . 1 3 2 . . 3 Rammed 22 | 1 6 . 9 2 . 4 Targets Rammed 27 | 1 9 . 11 2 . 4 Kicked . | . . . . . . . Crushed 5 | . 3 . 2 . . . Highest Temperature 339 | . 78 21 339 30 12 141 Average Temperature 42 | . 17 8 59 12 8 55 Received Heat Transfer 1305 | . 345 120 714 . . 126 Effects 3 | . . . 3 . . . Interference 3 | . . . 3 . . . Siege Activations . | . . . . . . . Robots Corrupted . | . . . . . . . Combat Hostiles . | . . . . . . . Parts Fried 6 | . . . 6 . . . Impact Corruptions . | . . . . . . . Robots Melted . | . . . . . . . Combat Hostiles . | . . . . . . . Parts Melted . | . . . . . . . Heat Transferred 1229 | . 261 . 868 100 . . Parts Sabotaged . | . . . . . . . Parts Stolen . | . . . . . . . Parts Stripped . | . . . . . . . Power Chain Reactions 3 | . . . 2 1 . . Missiles Intercepted . | . . . . . . . Alert | -11 -10 -10 -9 -9 -9 -8 ------- Run | Jun Mat Min Mat Min Exi Min Peak Influence 988 | 10 424 367 988 444 . 360 Initial 378 | . 6 91 143 378 . . Average 337 | 2 228 239 554 165 . 251 Maximum Alert Level 3 | . 2 1 3 2 . 1 Low Security (%) 28 | 100 22 39 14 54 . 6 Level 1 42 | . 71 60 17 39 . 93 Level 2 15 | . 6 . 31 5 . . Level 3 13 | . . . 35 . . . Level 4 . | . . . . . . . Level 5 . | . . . . . . . High Security . | . . . . . . . Max Security . | . . . . . . . Squads Dispatched 13 | . 5 . 7 . . 1 Investigation 6 | . 4 . 2 . . . Extermination . | . . . . . . . Reinforcement 5 | . 1 . 3 . . 1 Assault 2 | . . . 2 . . . Garrison . | . . . . . . . Intercept . | . . . . . . . Searches Triggered . | . . . . . . . Construction Impeded 2 | . . . 1 . . 1 Haulers Reinforced . | . . . . . . . Active Scanning Responses . | . . . . . . . Cargo Convoy Interrupts . | . . . . . . . Stealth | -11 -10 -10 -9 -9 -9 -8 --------- Run | Jun Mat Min Mat Min Exi Min Distress Signals 3 | . 2 . 1 . . . Communications Jammed . | . . . . . . . Distress Signals . | . . . . . . . Times Spotted 117 | . 29 6 59 2 8 13 Peak Tracking Total 9 | . 4 2 7 1 9 4 Tactical Retreats 3 | . 2 . 1 . . . Traps | -11 -10 -10 -9 -9 -9 -8 ------- Run | Jun Mat Min Mat Min Exi Min Traps Triggered 2 | . 2 . . . . . Indirectly . | . . . . . . . Trap Hack Attempts . | . . . . . . . Triggered . | . . . . . . . Disarmed . | . . . . . . . Reprogrammed . | . . . . . . . Reused . | . . . . . . . Traps Extracted . | . . . . . . . Installed . | . . . . . . . Triggered . | . . . . . . . Machines | -11 -10 -10 -9 -9 -9 -8 ---------- Run | Jun Mat Min Mat Min Exi Min Machines Disabled 12 | . 3 1 4 1 1 2 Max in Single Turn 3 | . 3 1 1 1 1 1 Machines Repaired . | . . . . . . . Machines Sabotaged . | . . . . . . . Overloaded Fab Kills . | . . . . . . . Hacking | -11 -10 -10 -9 -9 -9 -8 --------- Run | Jun Mat Min Mat Min Exi Min Machines Accessed 24 | . 9 . 14 . 1 . Terminals 15 | . 6 . 9 . . . Fabricators . | . . . . . . . Repair Stations 3 | . 1 . 2 . . . Recycling Units 4 | . 2 . 2 . . . Scanalyzers 1 | . . . 1 . . . Garrison Access . | . . . . . . . Total Hacks 55 | . 21 . 33 . 1 . Successful 30 | . 11 . 18 . 1 . Failed 24 | . 10 . 14 . . . Catastrophic . | . . . . . . . Database Lockouts 1 | . . . 1 . . . Manual 37 | . 18 . 18 . 1 . Terminals 39 | . 17 . 22 . . . Fabricators . | . . . . . . . Repair Stations 6 | . 2 . 4 . . . Recycling Units 5 | . 2 . 3 . . . Scanalyzers 4 | . . . 4 . . . Garrison Access . | . . . . . . . Terminal Hacks 13 | . 5 . 7 . 1 . Part Schematic 1 | . 1 . . . . . Robot Schematic 1 | . 1 . . . . . Robot Analysis 4 | . 3 . 1 . . . Emergency Access Points 1 | . . . 1 . . . Alert Level 1 | . . . 1 . . . Locate Traps 4 | . . . 4 . . . EX-Prototype ID Bank 1 | . . . . . 1 . Fabricator Hacks . | . . . . . . . Repair Station Hacks 4 | . 2 . 2 . . . Scan Component 2 | . 1 . 1 . . . Repair 2 | . 1 . 1 . . . Recycling Unit Hacks 1 | . . . 1 . . . Retrieve Components 1 | . . . 1 . . . Scanalyzer 4 | . . . 4 . . . Insert Component 2 | . . . 2 . . . Analyze 2 | . . . 2 . . . Garrison Access Hacks . | . . . . . . . Unauthorized Hacks 8 | . 4 . 4 . . . Terminals 5 | . 2 . 3 . . . Botnet 3 | . 1 . 2 . . . Operators 2 | . 1 . 1 . . . Fabricators . | . . . . . . . Repair Stations . | . . . . . . . Recycling Units 3 | . 2 . 1 . . . Tunnel 3 | . 2 . 1 . . . Scanalyzers . | . . . . . . . Garrison Access . | . . . . . . . Data Cores Recovered . | . . . . . . . Used . | . . . . . . . Hacking Detections 18 | . 6 . 12 . . . Full Trace Events 1 | . . . 1 . . . Feedback Events . | . . . . . . . Feedback Blocked . | . . . . . . . Robot Schematics Acquired 1 | . 1 . . . . . Robots Built . | . . . . . . . Authchips . | . . . . . . . Time . | . . . . . . . Total Robot Build Rating . | . . . . . . . Part Schematics Acquired 3 | . 1 . 2 . . . Parts Built . | . . . . . . . Authchips . | . . . . . . . Time . | . . . . . . . Total Part Build Rating . | . . . . . . . Parts Repaired 2 | . 1 . 1 . . . Time 51 | . 26 . 25 . . . Parts Recycled . | . . . . . . . Recycled Matter . | . . . . . . . Retrieved Matter . | . . . . . . . Retrieved Components 10 | . . . 10 . . . Parts Scanalyzed 2 | . . . 2 . . . Part Schematics Acquired 2 | . . . 2 . . . Parts Damaged . | . . . . . . . Bothacking | -11 -10 -10 -9 -9 -9 -8 ------------ Run | Jun Mat Min Mat Min Exi Min Used RIF Installer . | . . . . . . . Robots Hacked . | . . . . . . . Non-combat . | . . . . . . . Combat . | . . . . . . . Robot Hacks Applied . | . . . . . . . Relay Couplers Released . | . . . . . . . Fabnet Peak Effective % . | . . . . . . . Robots Rewired . | . . . . . . . Allies Hacked . | . . . . . . . Hacks Repelled . | . . . . . . . Allies | -11 -10 -10 -9 -9 -9 -8 -------- Run | Jun Mat Min Mat Min Exi Min Total Allies 1 | . . 1 . . . . Largest Group 1 | . . 1 1 . . . Highest-Rated Group 31 | . . 31 31 . . . Highest-Rated Ally 31 | . . 31 31 . . . Total Orders . | . . . . . . . Ally Attacks 13 | . . 12 1 . . . Total Damage 146 | . . 126 20 . . . Kills 1 | . . 1 . . . . Allies Corrupted . | . . . . . . . Allies Melted . | . . . . . . . Intel | -11 -10 -10 -9 -9 -9 -8 ------- Run | Jun Mat Min Mat Min Exi Min Robot Analysis Total 4 | . 3 . 1 . . . Derelict Logs Recovered 2 | . . . . 2 . . Drone Launches . | . . . . . . . Drone Recoveries . | . . . . . . . Exploration | -11 -10 -10 -9 -9 -9 -8 ------------- Run | Jun Mat Min Mat Min Exi Min Turns Passed 8016 | 103 1934 268 2794 1763 766 388 Spaces Moved 3304 | 56 782 143 1209 657 318 139 Core 5 | 5 . . . . . . Treads 3299 | 51 782 143 1209 657 318 139 Legs . | . . . . . . . Wheels . | . . . . . . . Hover . | . . . . . . . Flight . | . . . . . . . Fastest Speed 50 | 50 160 160 160 240 160 240 Average Speed 191 | 150 160 160 177 240 226 244 Slowest Speed 320 | 160 160 160 240 240 320 320 Overloaded Moves . | . . . . . . . Propulsion Burnouts . | . . . . . . . Robots Hopped . | . . . . . . . Cave-ins Triggered . | . . . . . . . Exploration Rate (%) 59 | 4 98 33 99 97 62 26 Regions Visited 6 Branch Regions 4 Pre-discovered Areas 4 | . 2 . 1 1 . . Known Exits Taken . | . . . . . . . Unknown Exits Taken 6 | 1 1 1 1 1 1 . Scrap Searched 4 | . . . . 4 . . Spaces Dug . | . . . . . . . Terrain Destroyed 252 | . 26 65 29 15 17 100 Melee . | . . . . . . . Projectile . | . . . . . . . AOE 252 | . 26 65 29 15 17 100 Terrain Rammed . | . . . . . . . Walls Destroyed . | . . . . . . . Machines Disabled . | . . . . . . . Actions | -11 -10 -10 -9 -9 -9 -8 --------- Run | Jun Mat Min Mat Min Exi Min Total 4453 | 67 1319 161 1555 838 355 158 Wait 692 | . 413 . 104 175 . . Move 3299 | 56 781 142 1208 656 317 139 Hop . | . . . . . . . Pick Up 33 | 2 11 . 12 1 7 . Fast Attach 35 | 7 4 . 16 . 8 . Attach 7 | . . 2 3 . 2 . Detach 6 | . 1 . 5 . . . Swap 25 | . 7 1 12 1 2 2 Drop 44 | . 10 . 24 1 9 . Fire 286 | 2 83 16 160 2 10 13 Melee . | . . . . . . . Ram . | . . . . . . . Kick . | . . . . . . . Crush 26 | . 9 . 11 2 . 4 Escape Stasis . | . . . . . . . Rewire . | . . . . . . . Trap . | . . . . . . . Miscellaneous . | . . . . . . . Route ------- -11/Junkyard -10/Materials (discovered 5 exits: *Mat x3 / [*Min x2]) -10/Mines -9/Materials (discovered 4 exits: [*Mat x3] / [*Min]) -9/Mines (discovered 3 exits: [*Mat x2] / *Exi) -9/Exiles -8/Mines History --------- Turn | Location | Event 3 | -11/Junkyard | Discovered new exit (range 15) 104 | -11/Junkyard | Entered Materials 314 | -10/Materials | Build established: Mutant 627 | -10/Materials | Discovered new exit (range 15) 780 | -10/Materials | Core integrity fell below 50% 932 | -10/Materials | Discovered new exit (range 15) 1066 | -10/Materials | Discovered new exit (range 5) 1084 | -10/Materials | Discovered new exit (range 14) 1531 | -10/Materials | Repaired Seismic Detector 1705 | -10/Materials | Discovered new exit (range 8) 2038 | -10/Materials | Entered Mines 2106 | -10/Mines | Discovered new exit (range 10) 2183 | -10/Mines | Received a Mining Laser from a helpful Derelict 2270 | -10/Mines | Core integrity fell below 20% 2306 | -10/Mines | Entered Materials 2306 | -9/Materials | Accompanied by 1 ally 2306 | -9/Materials | Evolved 2 slots: Utility x2 2797 | -9/Materials | Central database locked down 3586 | -9/Materials | Discovered new exit (range 10) 3798 | -9/Materials | Discovered new exit (range 9) 4045 | -9/Materials | Destroyed 8 combat bots 4242 | -9/Materials | Discovered new exit (range 9) 4306 | -9/Materials | First assault squad dispatched 4379 | -9/Materials | Core integrity fell below 50% 4766 | -9/Materials | Discovered new exit (range 16) 4847 | -9/Materials | Repaired Imp. Assault Rifle 5100 | -9/Materials | Entered Mines 5129 | -9/Mines | Met a Derelict bent on vengeance 5169 | -9/Mines | Learned location of Zion (-6) 5268 | -9/Mines | A weapon hastily lodged in a ceiling crevice suddenly fell to the ground 5626 | -9/Mines | Discovered new exit (range 8) 6008 | -9/Mines | Learned Materials interactive machine intel 6107 | -9/Mines | Assembled infested the area 6116 | -9/Mines | Received a Rocket Launcher from a helpful Derelict 6673 | -9/Mines | Deemed a non-threat by the Exiles lab entrance 6673 | -9/Mines | Discovered new exit (range 5) 6697 | -9/Mines | Discovered new exit (range 7) 6863 | -9/Mines | Entered Exiles 6921 | -9/Exiles | Met 8R-AWN 6964 | -9/Exiles | Met EX-HEX 7041 | -9/Exiles | Met EX-BIN 7067 | -9/Exiles | Aligned with FarCom system 7070 | -9/Exiles | Given EX-Vault access code 7127 | -9/Exiles | Opened EX-Vault 7149 | -9/Exiles | Found Firepult 7203 | -9/Exiles | Warned to stay clear of 0b10 Research branches 7277 | -9/Exiles | Met EX-DEC 7364 | -9/Exiles | Discovered new exit (range 10) 7514 | -9/Exiles | Attacked by the Exiles 7603 | -9/Exiles | Destroyed 7 combat bots 7629 | -9/Exiles | Left Exiles lab with Firepult 7629 | -9/Exiles | Entered Mines 7651 | -8/Mines | Core integrity fell below 20% 7677 | -8/Mines | Destroyed 8 combat bots 8017 | -8/Mines | Destroyed by G-47 Trooper with Particle Gun Last Messages --------------- 07702_ The unstable cave ceiling collapses. 07723_ U-05 Engineer lays Concrete. 07754_ K-01 Serf collects debris. 07773_ U-05 Engineer builds a Wall. 07773_ K-01 Serf collects debris. 07786_ Acquired 3 matter. 07798_ U-05 Engineer builds a Wall. 07828_ K-01 Serf collects debris. 07851_ Slammed into K-01 Serf. 07853_ K-01 Serf collects debris. 07970_ G-50 Soldier destroyed. 07974_ G-47 Trooper destroyed. 07977_ U-05 Engineer lays Concrete. 07979_ Destroyed Aluminum Leg. 07980_ Imp. Treads destroyed. 07981_ U-05 Engineer lays Concrete. 07982_ G-47 Trooper destroyed. 07983_ ALERT: Construction progress impeded, dispatching reinforcements to local area. 07996_ The unstable cave ceiling collapses. Map ----- +----------------------------------------------------+ | | | | | | | | | | | | | ?????????????????????????????????????????????????? | | ?????????????????????????????????????????????????? | | ??????????????????????????????????????????????#### | | ??????????????????????????????????????????????# | | ??????????????????????????????????????????????# | | ??????????????????????????????????????????????# | | ??????????????????????????????????????????????# | | ??????????????????????????????????????????????# | | ??????????????????????????????????????????????# | | ??????????????????????????????????????????????### | | ?????????????????????????????????????????????#### | | ???????????????????????#######???????????????#### | | ??????????????????????? #???????????????## | | ???????????????????????# #??????####???#### ## | | ???????????????????????# gg ?????## ##??# # | | ???????????????????????# ?????## #??# ### | | ???????????????????????# ??????# #?## ## | | ????????????????????#### ##?????# ### ### | | ????????????????????# # ######## #### | | ???????????????????## # @ ### | | ???????????????????# = ### ### ## ## | | ???????????????????## # t #?# #?##### ##* | | ???????????????????# ### #?????# ## | | ???????????????????## #### #?????# ### | | ?????????????????? # ??###########??# #?? | | ?????????????????# r # ##??????## ##?# #?? | | ?????????????????### # ## ###???????# #?# #?? | | ???????????????????# ## ? ??????????# ### #?? | | ???????????????????# ?# ??????????## ## #?? | | ??????????????????? ??#####???????????## # #?? | | ?????????????????? ???????????????????## #?? | | ????????????????? ?????????????????????## ####?? | | ????????????????? ???????????????????????####????? | | ?????????????????????????????????????????????????? | | ?????????????????????????????????????????????????? | | ?????????????????????????????????????????????????? | | ?????????????????????????????????????????????????? | | ?????????????????????????????????????????????????? | | ?????????????????????????????????????????????????? | | ?????????????????????????????????????????????????? | | ?????????????????????????????????????????????????? | | ?????????????????????????????????????????????????? | | ?????????????????????????????????????????????????? | | ?????????????????????????????????????????????????? | +----------------------------------------------------+ Best States ------------- Heat Dissipation 28 Energy Generation 14 Energy Capacity 280 Matter Stores 300 Matter Capacity 300 Sight Range 16 Terrain Scan Density 10 Armor Coverage 675 Evasion (%) 40 Recoil Reduction 2 Item Schematics ----------------- Huge Storage Unit | -10/Materials | Hacked Med. Storage Unit | -9/Materials | Scanalyzed Hacking Suite | -9/Materials | Scanalyzed Robot Schematics ------------------ M-13 Machinist | -10/Materials | Hacked Fabricated ------------ Nothing Alien Tech Used ----------------- None Achievements -------------- None Challenges ------------ None Game ------ Seed LinearWarpMegatreads Manual? 0 Play Time 00:29:41 Cumulative 215.9 hours Start 2024.02.18 @ 17:15:51 End 2024.02.18 @ 17:45:09 Sessions 1 Manual Loads 0 Difficulty Rogue Special Mode None Game No. 166 Rogue 166 Adventurer 0 Explorer 0 Win Type - Total 7 Types 4/0/1/1/0/0/0/1/0 Lore% 68 Gallery% 75 Achievement% 65 Wizard Run 0 Options --------- ASCII 0 Keyboard 1 Movement Numpad Keybinds 0 Fullscreen 2 Font 18/SmallcapsGlow Map View 76x50 Tactical HUD 1 Map Filters NONE Filters NONE Steam 1 RUN: c13fd409-f375-4236-8c59-3f8ca927e21c